[Event "WSTCC-65 2024"]
[Site "Krakow"]
[Date "2024.07.05"]
[Round "4.1"]
[White "Ftacnik, Lubomir"]
[Black "Nunn, John D M"]
[Result "1/2-1/2"]
[ECO "E97"]
[WhiteElo "2452"]
[BlackElo "2552"]
[Annotator "TA"]
[PlyCount "67"]
[EventDate "2024.07.01"]
[EventType "team-tourn"]
[EventCountry "POL"]
[SourceTitle "playchess.com"]
[Source "ChessBase"]
[SourceQuality "1"]
[TimeControl "40/5400+30:1800+30"]

{[%evp 21,67,25,53,55,61,52,58,58,54,58,74,41,37,25,22,16,39,4,18,0,52,22,51,54,52,56,85,81,91,83,70,72,70,89,88,64,122,96,128,116,113,115,162,162,175,159,174,157]} 1. d4 {[%emt 0:00:04]} Nf6 {[%emt 0:00:06]} 2. Nf3 {[%emt 0:00:13]} g6 {[%emt 0:00:08]} 3. c4 {[%emt 0:00:06]} Bg7 {[%emt 0:00:06]} 4. Nc3 {[%emt 0:00:06]} O-O {[%emt 0:00:08]} 5. e4 {[%emt 0:00:06]} d6 {[%emt 0:00:06]} 6. Be2 {[%emt 0:00:08]} e5 {[%emt 0:00:08]} 7. O-O {[%emt 0:00:08]} Nc6 {[%emt 0:00:06]} 8. d5 {[%emt 0:00:22]} Ne7 {[%emt 0:00:07]} 9. b4 {[%emt 0:00:07]} a5 {[%emt 0:00:58]} 10. bxa5 {[%emt 0:00:09]} Rxa5 {[%emt 0:00:15]} 11. a4 {[%emt 0:00:10]} b6 {[%emt 0:02:40]} 12. Nd2 {[%emt 0:06:43]} Ne8 {[%emt 0:04:43]} 13. Nb3 {[%emt 0:01:41]} Ra8 {[%emt 0:00:10]} 14. Be3 {[%emt 0:02:07] White is slightly better.} f5 {[%emt 0:03:27]} 15. f3 {[%emt 0:00:17]} Kh8 {[%emt 0:08:12]} 16. Qd2 {[%emt 0:19:08] White is more active.} fxe4 {[%emt 0:16:37]} 17. Nxe4 {[%emt 0:10:46]} Nf6 {[%emt 0:02:41]} 18. a5 {[%emt 0:04:22]} bxa5 {[%emt 0:06:30]} 19. Nxa5 {[%emt 0:04:36]} Bd7 {[%emt 0:06:01] Prevents Nc6.} 20. g4 {[%emt 0:13:26][%cal Bg2g4,Bg4g5][%mdl 32]} Neg8 {[%emt 0:05:36]} ({Black should play} 20... Nxe4 $11 21. fxe4 Rxf1+ 22. Kxf1 h5) 21. Ng3 {[%emt 0:06:30]} h5 {[%emt 0:07:22]} 22. g5 $1 {[%emt 0:05:25]} Nh7 {[%emt 0:00:06]} 23. c5 {[%emt 0:03:21] Threatens to win with cxd6.} Bh3 {[%emt 0:04:29]} 24. Rfd1 {[%emt 0:04:11] Black must now prevent Ne4.} Ne7 {[%emt 0:02:29][%cal Oe5e4]} 25. cxd6 {[%emt 0:01:53]} cxd6 {[%emt 0:00:43][%cal Oe5e4]} 26. Nc6 $36 {[%emt 0:03:50][%mdl 2048] White is on the roll.} Qd7 {[%emt 0:01:15]} 27. Nxe7 {[%emt 0:02:17]} (27. Ne4 {keeps more tension.} Nf5 28. Bf2 Ne7 29. Rdc1) 27... Qxe7 {[%emt 0:00:05]} 28. Ne4 {[%emt 0:00:35]} Bf5 {[%emt 0:04:34]} ({Black should try} 28... Rfb8 $14) 29. h4 {[%emt 0:01:51]} Qd7 {[%emt 0:03:02] [#]} 30. Kg2 $1 {[%emt 0:01:43] Qb4 would now be deadly.} Bxe4 {[%emt 0:07:28]} 31. fxe4 {[%emt 0:00:03]} Ra4 {[%emt 0:00:16]} (31... Rfc8 $16) 32. Qc2 $18 {[%emt 0:02:48] White is clearly better.} Rxa1 {[%emt 0:03:23]} 33. Rxa1 {[%emt 0:00:05]} Rc8 {[%emt 0:00:12] Prevents Qc6.} 34. Qd3 {[%emt 0:00:36] Weighted Error Value: White=0.07 (flawless) /Black=0.18 (very precise) .  Mistake:       	---       	Black=3      Inaccurate:     	White=3     	Black=3      OK:         	White=6     	Black=9      Best:        	---       	Black=1      Strong:       	White=2     	---} 1/2-1/2

[Event "WSTCC-65 2024"]
[Site "Krakow"]
[Date "2024.07.05"]
[Round "4.1"]
[White "Freeman, Richard C P"]
[Black "Vilerte, Tamara"]
[Result "1/2-1/2"]
[ECO "B24"]
[WhiteElo "1951"]
[BlackElo "1971"]
[Annotator "NA RC"]
[PlyCount "32"]
[EventDate "2024.07.01"]
[EventType "team-tourn"]
[EventCountry "POL"]
[SourceTitle "playchess.com"]
[Source "ChessBase"]
[SourceQuality "1"]
[TimeControl "40/5400+30:1800+30"]

1. e4 {[%emt 0:00:04]} c5 {[%emt 0:00:15]} 2. Nc3 {[%emt 0:00:13]} Nc6 {[%emt 0:00:37]} 3. Bb5 {[%emt 0:00:36]} g6 {[%emt 0:03:00]} 4. Bxc6 {[%emt 0:01:18]} dxc6 {[%emt 0:00:22]} 5. d3 {[%emt 0:02:40]} e5 {[%emt 0:03:45]} 6. f4 {[%emt 0:00:46]} Bg7 {[%emt 0:04:39]} 7. Nf3 {[%emt 0:06:30]} exf4 {[%emt 0:06:26]} 8. Bxf4 {[%emt 0:00:43]} Ne7 {[%emt 0:01:07]} 9. O-O {[%emt 0:01:29]} f6 {[%emt 0:07:47]} 10. Qd2 {[%emt 0:20:30]} O-O {[%emt 0:02:39]} 11. Bh6 {[%emt 0:01:49]} Bg4 {[%emt 0:01:41]} 12. Bxg7 {[%emt 0:09:45]} Kxg7 {[%emt 0:00:11]} 13. Qf4 {[%emt 0:01:03]} Qd7 {[%emt 0:13:18]} 14. Nd1 {[%emt 0:04:52]} Bxf3 {[%emt 0:06:19]} 15. Qxf3 {[%emt 0:08:43]} Qd4+ {[%emt 0:04:15]} 16. Ne3 {[%emt 0:09:56]} Rad8 {[%emt 0:16:20]} 1/2-1/2

[Event "WSTCC-65 2024"]
[Site "Krakow"]
[Date "2024.07.05"]
[Round "4.1"]
[White "Chubar, Vladimir"]
[Black "Baker, Chris W"]
[Result "0-1"]
[ECO "A46"]
[WhiteElo "1836"]
[BlackElo "2198"]
[Annotator "RC"]
[PlyCount "82"]
[EventDate "2024.07.01"]
[EventType "team-tourn"]
[EventCountry "POL"]
[SourceTitle "playchess.com"]
[Source "ChessBase"]
[SourceQuality "1"]
[TimeControl "40/5400+30:1800+30"]

1. d4 {[%emt 0:00:06]} Nf6 {[%emt 0:00:18]} 2. Nf3 {[%emt 0:00:18]} e6 {[%emt 0:01:03]} 3. Bg5 {[%emt 0:01:06]} d5 {[%emt 0:02:48]} 4. Nc3 {[%emt 0:01:26]} Bb4 {[%emt 0:04:17]} 5. Qd3 {[%emt 0:02:04]} c5 {[%emt 0:04:42]} 6. a3 {[%emt 0:02:23]} c4 {[%emt 0:04:48]} 7. Qe3 {[%emt 0:02:13]} Qa5 {[%emt 0:04:48]} 8. Bxf6 {[%emt 0:05:49]} gxf6 {[%emt 0:03:10]} 9. Rb1 {[%emt 0:04:27]} Be7 {[%emt 0:03:00]} 10. g3 {[%emt 0:05:49]} Nd7 {[%emt 0:06:21]} 11. Bh3 {[%emt 0:06:14]} a6 {[%emt 0:11:21]} 12. O-O {[%emt 0:07:37]} Qc7 {[%emt 0:02:33]} 13. b3 {[%emt 0:02:50]} b5 {[%emt 0:02:10]} 14. bxc4 {[%emt 0:01:49]} Qxc4 {[%emt 0:07:02]} 15. Rb3 {[%emt 0:01:33]} Bb7 {[%emt 0:05:50]} 16. Rfb1 {[%emt 0:03:28]} Rc8 {[%emt 0:02:25]} 17. Qh6 {[%emt 0:05:38]} Bf8 {[%emt 0:01:16]} 18. Qh5 {[%emt 0:02:08]} Qc6 {[%emt 0:02:59]} 19. Re1 {[%emt 0:04:32]} Be7 {[%emt 0:06:49]} 20. Bg2 {[%emt 0:02:46]} Qb6 {[%emt 0:04:03]} 21. Reb1 {[%emt 0:04:34]} Ba8 {[%emt 0:01:31]} 22. Bh3 {[%emt 0:02:48]} Rc4 {[%emt 0:03:24]} 23. a4 {[%emt 0:01:07]} b4 {[%emt 0:01:31]} 24. Na2 {[%emt 0:04:55]} a5 {[%emt 0:00:38]} 25. c3 {[%emt 0:00:20]} f5 {[%emt 0:00:30]} 26. e3 {[%emt 0:00:48]} Bc6 {[%emt 0:00:41]} 27. Ng5 {[%emt 0:04:57]} Bxg5 {[%emt 0:01:26]} 28. Qxg5 {[%emt 0:00:11]} Bxa4 {[%emt 0:00:09]} 29. Ra3 {[%emt 0:00:50]} Qc6 {[%emt 0:04:22]} 30. cxb4 {[%emt 0:00:36]} axb4 {[%emt 0:00:05]} 31. Rab3 {[%emt 0:07:43]} Bxb3 {[%emt 0:00:27]} 32. Rxb3 {[%emt 0:00:13]} Qa4 {[%emt 0:00:23]} 33. Rb2 {[%emt 0:06:48]} b3 {[%emt 0:01:06]} 34. Bxf5 {[%emt 0:04:59]} Qxa2 {[%emt 0:01:13]} 35. Rb1 {[%emt 0:00:53]} exf5 {[%emt 0:00:39]} 36. Qxf5 {[%emt 0:00:07]} b2 {[%emt 0:00:21]} 37. Kg2 {[%emt 0:00:16]} Rc1 {[%emt 0:00:13]} 38. Rxb2 {[%emt 0:00:19]} Qxb2 {[%emt 0:00:08]} 39. Qxd5 {[%emt 0:00:06]} Qc2 {[%emt 0:01:55]} 40. Qa8+ {[%emt 0:02:24]} Qc8 {[%emt 0:00:09]} 41. Qe4+ {[%emt 0:02:14]} Kf8 {[%emt 0:02:49]} 0-1

[Event "WSTCC-65 2024"]
[Site "Krakow"]
[Date "2024.07.05"]
[Round "4.2"]
[White "Kosten, Anthony C."]
[Black "Plachetka, Jan"]
[Result "1-0"]
[ECO "A37"]
[WhiteElo "2360"]
[BlackElo "2289"]
[Annotator "TA"]
[PlyCount "119"]
[EventDate "2024.07.01"]
[EventType "team-tourn"]
[EventCountry "POL"]
[SourceTitle "playchess.com"]
[Source "ChessBase"]
[SourceQuality "1"]
[TimeControl "40/5400+30:1800+30"]

{[%evp 9,119,10,12,20,6,-11,5,7,24,18,16,0,39,16,51,32,30,37,40,31,35,11,32,34,27,26,23,16,26,34,18,26,37,61,58,58,62,59,65,41,56,12,11,7,6,6,10,10,31,35,71,50,40,48,51,27,220,177,281,257,259,260,192,68,69,62,62,62,62,62,76,62,62,62,62,62,62,62,62,62,100,100,100,100,100,100,100,100,100,100,1106,1266,1082,984,1397,1227,1162,1113,12817,12818,29972,29973,29965,1113,12387,9963,29948,12843,6050,2794,29974,29975]} 1. c4 {[%emt 0:00:03]} c5 {[%emt 0:00:19]} 2. g3 {[%emt 0:00:12]} Nc6 {[%emt 0:00:31]} 3. Bg2 {[%emt 0:00:08]} g6 {[%emt 0:00:18]} 4. Nc3 {[%emt 0:00:09]} Bg7 {[%emt 0:00:18]} 5. Nf3 {[%emt 0:00:08]} e6 {[%emt 0:01:01]} 6. h4 {[%emt 0:00:11]} h6 {[%emt 0:02:56]} 7. d4 {[%emt 0:02:18]} cxd4 {[%emt 0:11:28]} 8. Nb5 {[%emt 0:00:46][%cal Oe1g1] The position is equal.} d5 {[%emt 0:08:21]} 9. cxd5 {[%emt 0:00:28]} exd5 {[%emt 0:01:52] ...Qa5+ is the strong threat.} 10. O-O {[%emt 0:02:55][%cal Oc1f4]} Nge7 {[%emt 0:04:16]} 11. Nbxd4 {[%emt 0:01:16]} O-O {[%emt 0:00:30]} 12. Be3 {[%emt 0:01:03]} Nf5 {[%emt 0:14:54]} 13. Nxf5 {[%emt 0:01:21]} Bxf5 {[%emt 0:00:04]} 14. Qd2 {[%emt 0:01:12]} Kh7 {[%emt 0:01:40]} 15. Rfd1 {[%emt 0:01:14][%cal Of3d4]} Be4 {[%emt 0:01:44]} 16. Rac1 {[%emt 0:01:18]} Re8 {[%emt 0:01:20]} 17. b4 {[%emt 0:02:12]} a6 {[%emt 0:04:34]} 18. a3 {[%emt 0:01:37]} Qf6 {[%emt 0:06:10]} 19. Bd4 {[%emt 0:24:43]} Nxd4 {[%emt 0:01:03]} 20. Nxd4 {[%emt 0:00:05]} Bxg2 {[%emt 0:09:44]} 21. Kxg2 {[%emt 0:00:09]} Rac8 {[%emt 0:01:49]} 22. Rxc8 {[%emt 0:01:30]} Rxc8 {[%emt 0:00:02]} 23. e3 {[%emt 0:00:45]} Qe7 {[%emt 0:02:57]} 24. Nf3 {[%emt 0:05:40]} Rd8 {[%emt 0:00:48]} 25. Qd3 {[%emt 0:03:06]} Bf6 {[%emt 0:01:59]} 26. Kg1 {[%emt 0:10:28]} Qe4 {[%emt 0:01:16]} 27. Nd4 {[%emt 0:04:13][%cal Bf3d4,Bd4e2,Be2c3][%mdl 32]} Kg8 {[%emt 0:01:36]} 28. Ne2 {[%emt 0:05:08]} (28. Nb3 {simplifies} Qxd3 29. Rxd3 b6 30. Nd4) 28... g5 {[%emt 0:01:33]} (28... Qxd3 {simplifies} 29. Rxd3 Kf8 30. Rd2 Ke7) 29. hxg5 {[%emt 0:00:31]} hxg5 {[%emt 0:00:07]} 30. Qxe4 {[%emt 0:01:12]} dxe4 {[%emt 0:00:06]} 31. Rxd8+ {[%emt 0:00:06]} Bxd8 $14 {[%emt 0:00:02][%mdl 4096] Endgame. KB-KN} 32. g4 {[%emt 0:00:19]} b5 $2 {[%emt 0:01:20]} (32... f6 $11) 33. Nc3 {[%emt 0:00:44]} Bf6 {[%emt 0:00:14]} (33... Kg7 $142 34. Nxe4 Kg6) 34. Nxe4 $18 {[%emt 0:00:08]} Bb2 {[%emt 0:00:04]} 35. Nc5 {[%emt 0:00:28]} (35. Nxg5 Bxa3 36. Kf1 Bxb4 $17) 35... Bxa3 {[%emt 0:00:17]} 36. Nxa6 {[%emt 0:00:25]} ({White must play} 36. Nd3 $1 $18) 36... Kg7 $14 {[%emt 0:01:06]} 37. Nc7 {[%emt 0:07:42]} Bxb4 {[%emt 0:00:17]} 38. Nxb5 {[%emt 0:00:03]} Kf6 {[%emt 0:00:12]} 39. Nd4 {[%emt 0:00:47]} Bc3 {[%emt 0:01:32]} 40. Nf5 {[%emt 0:01:15]} Ke5 {[%emt 0:00:45]} 41. Kf1 {[%emt 0:31:43]} Ke6 {[%emt 0:31:37]} 42. Ke2 {[%emt 0:00:11]} Ba5 {[%emt 0:01:21]} 43. Kd3 {[%emt 0:00:10]} Be1 {[%emt 0:00:33]} 44. f3 {[%emt 0:00:26]} Bb4 {[%emt 0:00:26] White leaves nothing to chance now.} 45. Ke4 {[%emt 0:00:19]} Ba3 {[%emt 0:00:15]} 46. Nd4+ {[%emt 0:00:22]} Kf6 {[%emt 0:00:09]} 47. Kd5 {[%emt 0:01:33]} Bc1 {[%emt 0:02:22]} 48. e4 {[%emt 0:07:01]} Bb2 {[%emt 0:03:14]} 49. Nc6 {[%emt 0:03:20]} Bc1 $2 {[%emt 0:02:42][%mdl 8192]} (49... Ba3 $16) 50. Kd6 $1 $18 {[%emt 0:09:59]} Ba3+ {[%emt 0:02:09] [#]} 51. Kd7 $1 {[%emt 0:00:11]} Kg6 {[%emt 0:01:01]} 52. Ke8 {[%emt 0:01:28]} f6 {[%emt 0:02:10]} 53. Kd7 {[%emt 0:01:15]} Bb2 {[%emt 0:00:35]} 54. Ke6 {[%emt 0:00:13]} Bc3 {[%emt 0:00:40]} 55. Ne7+ {[%emt 0:00:14]} Kg7 {[%emt 0:00:17]} 56. Kf5 {[%emt 0:00:27]} (56. Nd5 $142 Be5 57. Nxf6 Bh2 58. Nd5 Kf8 59. e5 (59. Kf5 Ke8 $18) 59... Bg3 60. Kf6 Bf2 61. e6 (61. Kxg5 Bd4 $18)) 56... Bb2 {[%emt 0:00:19]} 57. Nc6 {[%emt 0:00:44] Intending e5 and mate.} Bc1 {[%emt 0:00:34]} 58. Nb8 {[%emt 0:00:00] Nd7 would kill now.} Bb2 {[%emt 0:00:00] [#]} 59. Nd7 $1 {[%emt 0:00:00] Hoping for e5.} Bc1 {[%emt 0:00:00]} 60. Nxf6 {Weighted Error Value: White=0.10 (very precise) /Black=0.59.  Loses game:     	---       	Black=2      Mistake:       	White=1     	Black=1      Inaccurate:     	White=1     	Black=4      OK:         	White=14    	Black=15     Best:        	White=3     	Black=2      Strong:       	White=1     	---} 1-0

[Event "WSTCC-65 2024"]
[Site "Krakow"]
[Date "2024.07.05"]
[Round "4.2"]
[White "Stebbings, Anthony J"]
[Black "Dovzhenko, Viktor"]
[Result "1-0"]
[ECO "B06"]
[WhiteElo "2240"]
[BlackElo "2044"]
[Annotator "TA"]
[PlyCount "83"]
[EventDate "2024.07.01"]
[EventType "team-tourn"]
[EventCountry "POL"]
[SourceTitle "playchess.com"]
[Source "ChessBase"]
[SourceQuality "1"]
[TimeControl "40/5400+30:1800+30"]

{[%evp 9,83,39,53,34,36,21,25,12,14,13,51,13,26,33,43,-1,42,23,54,41,44,38,118,36,35,9,6,10,269,284,264,273,310,302,349,277,268,238,308,316,329,328,372,357,386,376,356,282,411,370,369,270,295,275,295,304,307,302,493,313,337,335,327,254,229,0,299,163,164,174,5918,5718,29988,0,267,186]} 1. e4 {[%emt 0:00:03]} g6 {[%emt 0:00:12]} 2. d4 {[%emt 0:00:04]} a6 {[%emt 0:00:25]} 3. Be3 {[%emt 0:01:49]} Bg7 {[%emt 0:02:44]} 4. Nc3 {[%emt 0:00:13]} b5 {[%emt 0:01:40]} 5. h4 {[%emt 0:09:43]} h5 {[%emt 0:00:26]} 6. Qd2 {[%emt 0:00:51]} Bb7 {[%emt 0:01:56]} 7. f3 {[%emt 0:00:14]} d6 {[%emt 0:06:07]} 8. O-O-O {[%emt 0:02:55] Weiß hat minimalen Vorteil.} Nd7 {[%emt 0:00:48]} 9. Nh3 {[%emt 0:01:01]} Rc8 {[%emt 0:00:22]} 10. Kb1 {[%emt 0:06:04]} c5 {[%emt 0:01:04]} 11. dxc5 {[%emt 0:00:57]} Nxc5 {[%emt 0:00:20]} 12. Bd4 {[%emt 0:01:47]} Nf6 {[%emt 0:07:36] [#]} 13. Nd5 $1 {[%emt 0:04:13]} e5 {[%emt 0:12:18]} (13... Ncd7 14. Nxf6+) 14. Nxf6+ {[%emt 0:03:34]} Bxf6 {[%emt 0:07:02]} 15. Be3 {[%emt 0:05:18][%cal Bd4e3,Be3c5,Bc5d6,Bd6e5,Be5c3][%mdl 32]} O-O {[%emt 0:09:13] [#]} (15... Be7 $14) 16. Qxd6 {[%emt 0:16:24]} ({Günstiger ist} 16. Nf2 $1 $16) 16... Bxh4 $14 {[%emt 0:11:52][%cal Oc5e4]} 17. Be2 {[%emt 0:01:09]} ({Viel schlechter ist} 17. Bxc5 Rxc5 18. Qxd8 Rxd8 $17) (17. Nf2 $5 Qxd6 18. Rxd6 $11) 17... Qxd6 {[%emt 0:02:01]} 18. Rxd6 {[%emt 0:00:04]} Be7 $2 {[%emt 0:01:35][%mdl 8192] [#]} (18... Rfd8 $11 19. Rb6 Rd7) 19. Bxc5 $1 $18 {[%emt 0:04:07][%cal Od6g6] Droht stark Rxg6+!} Bxd6 {[%emt 0:05:26]} ({Doch nicht} 19... Rxc5 20. Rd7 $18) 20. Bxd6 {[%emt 0:00:05]} Rfd8 {[%emt 0:01:33]} 21. Bxe5 {[%emt 0:05:21]} Rd2 {[%emt 0:00:21]} 22. Re1 {[%emt 0:00:18]} Rcxc2 {[%emt 0:02:03]} 23. Ng1 {[%emt 0:05:21]} Rc8 {[%emt 0:00:50]} 24. Bc3 {[%emt 0:01:46]} Rd7 {[%emt 0:02:00]} 25. Bd1 {[%emt 0:02:04]} Kh7 {[%emt 0:02:21]} 26. Bb3 {[%emt 0:01:53]} Re8 {[%emt 0:00:39]} 27. Nh3 {[%emt 0:02:39]} Kh6 {[%emt 0:01:50]} 28. Nf4 {[%emt 0:09:00]} f5 {[%emt 0:04:32]} (28... g5 {ist wohl besser.}) 29. Nd5 {[%emt 0:02:40] Zielt auf Nf6 ab.} fxe4 {[%emt 0:05:04]} 30. fxe4 {[%emt 0:03:21] Droht Nf6 und aus.} Rf8 {[%emt 0:01:49]} 31. Re2 {[%emt 0:03:50]} Rdf7 {[%emt 0:01:37]} 32. Kc2 {[%emt 0:02:07]} Rf2 {[%emt 0:00:35]} 33. Kd3 {[%emt 0:00:19]} Bc8 $2 {[%emt 0:02:49]} (33... Rxe2 {ist eine bessere Verteidigung.} 34. Kxe2 h4) 34. Bd4 {[%emt 0:01:27]} Rxe2 {[%emt 0:00:56]} 35. Kxe2 {[%emt 0:00:03]} Bg4+ {[%emt 0:00:23]} 36. Ke1 {[%emt 0:01:13]} Be6 {[%emt 0:01:47]} 37. Ke2 $2 {[%emt 0:01:35]} (37. Bc5 $18 Rf7 38. e5) 37... h4 $2 {[%emt 0:00:32][%mdl 8192]} (37... Bg4+ $1 $11 {und Schwarz muss sich keine Sorgen machen.} 38. Kd3 g5) 38. Nf6 {[%emt 0:00:53]} (38. Nc7 $142 Bxb3 39. axb3) 38... Bxb3 {[%emt 0:01:05]} 39. axb3 {[%emt 0:00:02][%cal Ba2b3,Bb3b4][%mdl 32] Und e5 würde nun gewinnen.} Kg5 $2 {[%emt 0:00:29]} (39... g5 40. Kf3 b4) 40. Nh7+ {[%emt 0:00:51]} Kh6 41. Nf6 $2 (41. Nxf8 {setzt Matt} g5 42. e5 Kg7 43. Ne6+ (43. Nd7 Kf7 $18) 43... Kf7 44. Nxg5+ Ke8 45. Bc5 Kd8 46. e6) 41... Rc8 $2 {[%mdl 8192]} (41... Kg5 $1 $11 42. Nh7+ Kf4 43. Nxf8 Kxe4) 42. b4 {Gewichteter Fehlerwert: Weiß=0.52/Schwarz=0.69.  Verlustzug:     	---       	Schwarz=2     Gewinn verpasst:   	Weiß=1     	---        Fehler:       	Weiß=2     	Schwarz=4     Ungenau:       	Weiß=4     	Schwarz=4     OK:         	Weiß=12    	Schwarz=13    Bester:       	Weiß=1     	Schwarz=1     Stark:        	Weiß=1     	---} 1-0

[Event "WSTCC-65 2024"]
[Site "Krakow"]
[Date "2024.07.05"]
[Round "4.2"]
[White "Goldmane, Astra"]
[Black "Wood, Peter R"]
[Result "1/2-1/2"]
[ECO "C03"]
[WhiteElo "1989"]
[BlackElo "1948"]
[Annotator "NA RC"]
[PlyCount "46"]
[EventDate "2024.07.01"]
[EventType "team-tourn"]
[EventCountry "POL"]
[SourceTitle "playchess.com"]
[Source "ChessBase"]
[SourceQuality "1"]
[TimeControl "40/5400+30:1800+30"]

1. e4 {[%emt 0:00:03]} e6 {[%emt 0:00:11]} 2. d4 {[%emt 0:00:10]} d5 {[%emt 0:00:10]} 3. Nd2 {[%emt 0:00:10]} h6 {[%emt 0:01:30]} 4. Ngf3 {[%emt 0:03:21]} Nf6 {[%emt 0:00:23]} 5. e5 {[%emt 0:00:34]} Nfd7 {[%emt 0:00:14]} 6. Nb3 {[%emt 0:03:26]} c5 {[%emt 0:01:46]} 7. dxc5 {[%emt 0:02:38]} Nc6 {[%emt 0:06:49]} 8. Bb5 {[%emt 0:08:06]} Nxc5 {[%emt 0:01:37]} 9. Be3 {[%emt 0:13:52]} Nxb3 {[%emt 0:01:42]} 10. axb3 {[%emt 0:00:18]} Bd7 {[%emt 0:01:08]} 11. Bxc6 {[%emt 0:11:45]} bxc6 {[%emt 0:00:25]} 12. O-O {[%emt 0:02:17]} c5 {[%emt 0:02:45]} 13. b4 {[%emt 0:00:48]} Qc7 {[%emt 0:02:50]} 14. bxc5 {[%emt 0:01:14]} Bxc5 {[%emt 0:00:34]} 15. Bxc5 {[%emt 0:01:08]} Qxc5 {[%emt 0:00:13]} 16. Qd4 {[%emt 0:19:54]} Qxd4 {[%emt 0:01:06]} 17. Nxd4 {[%emt 0:00:01]} O-O {[%emt 0:01:00]} 18. Ra6 {[%emt 0:01:23]} Rfb8 {[%emt 0:00:47]} 19. b3 {[%emt 0:00:48]} Rb4 {[%emt 0:04:35]} 20. Rd1 {[%emt 0:01:49]} Rb6 {[%emt 0:18:50]} 21. Rda1 {[%emt 0:02:48]} Rb4 {[%emt 0:00:45]} 22. c3 Rb7 23. b4 Rc7 1/2-1/2

[Event "WSTCC-65 2024"]
[Site "Krakow"]
[Date "2024.07.05"]
[Round "4.3"]
[White "Kalinin, Alexander"]
[Black "Povah, Nigel E"]
[Result "0-1"]
[ECO "A45"]
[WhiteElo "2459"]
[BlackElo "2179"]
[Annotator "TA"]
[PlyCount "56"]
[EventDate "2024.07.01"]
[EventType "team-tourn"]
[EventCountry "POL"]
[SourceTitle "playchess.com"]
[Source "ChessBase"]
[SourceQuality "1"]
[TimeControl "40/5400+30:1800+30"]

{[%evp 13,56,-14,-6,-22,-18,-47,-41,-122,-112,-184,-194,-178,-215,-192,-192,-203,-201,-202,-200,-195,-216,-189,-163,-208,-200,-241,-239,-434,-438,-402,-422,-737,-745,-807,-797,-923,-798,-782,-756,-817,-780,-29992,-29993,-29995,-29996]} 1. d4 {[%emt 0:00:14]} Nf6 {[%emt 0:00:12]} 2. g3 {[%emt 0:00:23]} e6 {[%emt 0:02:20]} 3. Bg2 {[%emt 0:00:20]} c5 {[%emt 0:01:17]} 4. c3 {[%emt 0:00:25]} Nc6 {[%emt 0:02:31]} 5. Nf3 {[%emt 0:02:23]} Be7 {[%emt 0:01:52]} 6. O-O {[%emt 0:00:39]} O-O {[%emt 0:00:17]} 7. Re1 {[%emt 0:00:29]} d5 {[%emt 0:03:28]} 8. b3 {[%emt 0:09:54]} b6 {[%emt 0:24:01]} 9. c4 {[%emt 0:13:47]} cxd4 {[%emt 0:05:58]} 10. cxd5 {[%emt 0:04:13]} (10. Nxd4 $15 Nxd4 11. Qxd4) 10... Nxd5 $17 {[%emt 0:00:40]} ({Much weaker is} 10... Qxd5 $6 11. Bb2 $11 (11. Nxd4 Qxd4 12. Qxd4 Nxd4 $17)) 11. Bb2 {[%emt 0:01:55]} (11. Nxd4 $2 {perishes.} Nxd4 12. Bb2 (12. Qxd4 $2 {too greedy.} Bf6 $19) 12... Nc6 $19) (11. Ba3 $17 {might work better.}) 11... e5 $19 {[%emt 0:11:06]} 12. Nbd2 {[%emt 0:12:53]} Be6 {[%emt 0:03:17]} 13. Nc4 {[%emt 0:03:21]} f6 {[%emt 0:01:45]} 14. e3 {[%emt 0:08:07]} dxe3 {[%emt 0:07:20]} 15. Nxe3 {[%emt 0:00:25]} Nxe3 {[%emt 0:03:52]} 16. Rxe3 {[%emt 0:00:16][%cal Of3g5]} Qxd1+ {[%emt 0:01:20]} 17. Rxd1 {[%cal Of3g5]} Rfd8 18. Ra1 {[%emt 0:05:08]} Rac8 {[%emt 0:01:30]} 19. Bf1 {[%emt 0:04:20]} Bc5 {[%emt 0:03:15]} 20. Rd3 {[%emt 0:20:46] [#]} (20. Re2) 20... e4 {[%emt 0:03:55][%csl LRd3,LRf3]} 21. Rxd8+ {[%emt 0:00:25]} Rxd8 {[%emt 0:00:08]} 22. Bb5 {[%emt 0:00:30]} (22. Re1 $142 Bg4 23. b4 Bxb4 (23... Nxb4 $2 24. Nd4 $19) 24. Rxe4 Bxf3 25. Rf4) 22... exf3 {[%emt 0:01:36]} 23. Bxc6 {[%emt 0:02:24]} Rd2 {[%emt 0:00:28][%csl LRb2,LRf2]} 24. Bc3 {[%emt 0:01:11]} Bxf2+ {[%emt 0:00:58]} 25. Kh1 {[%emt 0:04:21]} Rc2 {[%emt 0:00:17]} 26. Be1 {[%emt 0:01:34]} Bxe1 {[%emt 0:00:50]} 27. Be4 {[%emt 0:00:53]} f2 {[%emt 0:00:22][%cal Rf2f1]} 28. Kg2 {[%emt 0:00:54] [#]} Bh3+ $1 {[%emt 0:00:09] Black took control after the opening.   Weighted Error Value: White=0.96/Black=0.11 (very precise) .  Mistake:       	White=4     	---        Inaccurate:     	White=1     	---        OK:         	White=3     	Black=9      Best:        	---       	Black=2} 0-1